[Event "LTU-ch Men 2019"]
[Site "Vilnius"]
[Date "2019.03.21"]
[Round "9.12"]
[White "Kalinauskas, Vytautas"]
[Black "Bagvilas, Lukas"]
[Result "0-1"]
[ECO "B01"]
[WhiteElo "1783"]
[BlackElo "1973"]
[Annotator "NA RC"]
[PlyCount "136"]
[EventDate "2019.??.??"]
[EventCountry "LTU"]
[SourceTitle "playchess.com"]
[Source "ChessBase"]
[SourceQuality "1"]
[TimeControl "5400+30"]

{[%evp 8,136,61,60,69,58,88,32767,32767,32767,32767,32767,32767,32767,16,9,18,25,65,48,52,50,51,42,54,34,52,29,49,17,39,32,28,-2,-6,-14,-8,-9,-7,-20,-18,-20,8,10,38,0,0,0,0,-8,-7,-11,0,-18,-7,-17,0,-121,-160,-159,-171,-150,-179,-150,-155,-128,-79,32767,32767,32767,32767,-122,-183,-150,-134,-131,-165,-168,32767,32767,32767,32767,0,-71,-66,-77,-59,-50,-67,-54,-8,-14,32767,32767,32767,32767,-32,-19,-23,-22,-20,-14,-14,-16,-8,-22,-22,-59,-62,-68,-59,-47,-47,-60,-59,-59,-54,-121,-54,-107,-120,-163,-221,-4614,-4606,-1280,-5814,-29986,-29987,-29990,-29991]} 1. e4 {[%emt 0:00:00]} d5 {[%emt 0:00:17]} 2. exd5 {[%emt 0:00:00]} Qxd5 {[%emt 0:00:02]} 3. Nf3 {[%emt 0:00:00]} Nf6 {[%emt 0:00:17]} 4. d4 {[%emt 0:01:02]} Bg4 {[%emt 0:00:13]} 5. Be2 {[%emt 0:00:20]} e6 {[%emt 0:00:30]} 6. O-O {[%emt 0:01:40]} Qd7 $146 {[%emt 0:00:21] B01: Scandinavian Defence} ({Predecessor:} 6... Be7 7. h3 Bh5 8. c4 Qd7 9. Qb3 Bxf3 10. Bxf3 c6 11. Nc3 O-O 12. Rd1 Na6 13. Be3 Ne8 14. Qa4 Qc8 {1-0 (45) Alekseev,E (2616)-Swicarz,M (2378) Katowice 2017}) 7. Ne5 {[%emt 0:04:30]} Bxe2 {[%emt 0:00:06]} 8. Nxd7 {[%emt 0:00:04]} Bxd1 {[%emt 0:00:04]} 9. Nxf6+ {[%emt 0:00:05]} gxf6 {[%emt 0:00:04]} 10. Rxd1 {[%emt 0:00:07]} Bd6 {[%emt 0:00:06]} 11. Nc3 {[%emt 0:01:08]} c6 {[%emt 0:00:06]} 12. Ne4 {[%emt 0:00:39]} Ke7 {[%emt 0:00:50]} 13. Nxd6 {[%emt 0:07:38]} Kxd6 {[%emt 0:00:01]} 14. Bf4+ {[%emt 0:00:48]} Ke7 {[%emt 0:00:01]} 15. b3 {[%emt 0:10:13]} Na6 {[%emt 0:01:01]} 16. c3 {[%emt 0:03:59]} Rhg8 {[%emt 0:00:08]} 17. h3 {[%emt 0:09:24]} Rad8 {[%emt 0:00:42]} 18. Rd2 {[%emt 0:05:12]} Rd7 {[%emt 0:00:09]} 19. Rad1 {[%emt 0:01:02]} Nc7 {[%emt 0:00:51]} 20. Bxc7 {[%emt 0:06:08]} Rxc7 {[%emt 0:00:01]} 21. Kf1 {[%emt 0:00:26]} b6 {[%emt 0:00:08]} 22. g3 {[%emt 0:01:25]} h5 {[%emt 0:00:05]} 23. Ke2 {[%emt 0:00:33]} Rcc8 {[%emt 0:00:07]} 24. c4 {[%emt 0:09:13]} h4 {[%emt 0:03:30]} 25. g4 {[%emt 0:11:40]} b5 {[%emt 0:06:55]} 26. c5 {[%emt 0:09:31]} b4 {[%emt 0:01:07]} 27. a4 {[%emt 0:02:35]} a5 {[%emt 0:01:28]} 28. f4 {[%emt 0:07:03]} Rcd8 {[%emt 0:00:09]} 29. Kf3 {[%emt 0:03:10]} Rd5 {[%emt 0:00:35]} 30. Rd3 {[%emt 0:01:15]} Rgd8 {[%emt 0:01:23]} 31. R1d2 {[%emt 0:00:50]} f5 {[%emt 0:11:42]} 32. Rd1 {[%emt 0:02:23] [#]} (32. g5 $11) 32... f6 $1 {[%emt 0:00:11]} 33. gxf5 {[%emt 0:02:00]} Rxf5 {[%emt 0:00:05]} 34. Kg4 {[%emt 0:01:04]} Rg8+ {[%emt 0:00:07]} 35. Kf3 {[%emt 0:00:32]} Rg3+ {[%emt 0:00:06]} 36. Ke4 {[%emt 0:00:00]} Rh5 {[%emt 0:03:54]} (36... Rg2 $19 {has better winning chances.} 37. R1d2 Rg1) 37. Rxg3 {[%emt 0:00:26]} hxg3 {[%emt 0:00:01]} 38. Kf3 {[%emt 0:00:07]} Rxh3 {[%emt 0:00:07]} 39. Kg2 {[%emt 0:00:32]} Rh2+ {[%emt 0:00:25]} 40. Kxg3 {[%emt 0:00:01]} Rc2 {[%emt 0:00:02]} 41. Rh1 {[%emt 0:00:40]} Rc3+ {[%emt 0:04:11]} 42. Kf2 {[%emt 0:00:14]} Rxb3 {[%emt 0:22:34]} 43. Rh7+ {[%emt 0:00:01]} Kd8 {[%emt 0:00:07]} 44. Rh8+ {[%emt 0:00:13]} Ke7 {[%emt 0:02:07]} 45. Rh7+ {[%emt 0:00:04] [#]} Kf8 $1 {[%emt 0:02:56]} 46. Rc7 {[%emt 0:00:20]} Ra3 {[%emt 0:01:06]} 47. Rxc6 {[%emt 0:00:19]} Rxa4 {[%emt 0:02:16]} 48. Rb6 $1 {[%emt 0:00:40]} ({Don't blunder} 48. Rxe6 $2 b3 $19) 48... Ke7 {[%emt 0:00:07]} 49. f5 {[%emt 0:02:26]} exf5 {[%emt 0:05:00]} 50. d5 {[%emt 0:00:00]} Ra2+ {[%emt 0:02:12]} 51. Ke3 {[%emt 0:00:29]} Rc2 {[%emt 0:01:18]} 52. Rb5 {[%emt 0:01:14]} a4 {[%emt 0:02:19]} 53. Rb7+ {[%emt 0:00:33]} Ke8 {[%emt 0:00:04]} 54. Rxb4 {[%emt 0:00:25]} Rxc5 {[%emt 0:00:01]} 55. Rxa4 {[%emt 0:00:12]} Rxd5 {[%emt 0:00:01]} 56. Kf4 {[%emt 0:00:23]} Kf7 {[%emt 0:00:07]} 57. Rb4 {[%emt 0:00:52]} Kg6 {[%emt 0:00:06]} 58. Rb8 {[%emt 0:00:26]} Rd4+ {[%emt 0:00:10]} 59. Kf3 {[%emt 0:00:02]} Rd1 {[%emt 0:04:30]} 60. Kf4 {[%emt 0:00:30]} Rf1+ {[%emt 0:00:16]} 61. Kg3 {[%emt 0:00:19]} f4+ {[%emt 0:00:28]} 62. Kg2 {[%emt 0:00:10]} (62. Kh3 $15) 62... Ra1 {[%emt 0:00:12]} 63. Rb4 {[%emt 0:01:00]} (63. Kf3 $1 $11) 63... Kg5 {[%emt 0:00:06]} 64. Rb5+ {[%emt 0:00:27]} (64. Rb7 $17 {was called for.}) 64... Kg4 {[%emt 0:00:05]} 65. Rb8 $2 {[%emt 0:00:49]} (65. Rb2) 65... Ra2+ {[%emt 0:00:08]} 66. Kf1 {[%emt 0:01:09] [#]} Kg3 $19 {[%emt 0:00:07]} 67. Rb3+ {[%emt 0:00:10]} f3 {[%emt 0:00:04]} 68. Rb1 {[%emt 0:00:14]} Rh2 {[%emt 0:00:06]} 0-1

[Event "LTU-ch Men 2019"]
[Site "Vilnius"]
[Date "2019.03.21"]
[Round "9.13"]
[White "Slusnys, Evaldas"]
[Black "Narmontas, Raimondas"]
[Result "0-1"]
[ECO "B14"]
[WhiteElo "1849"]
[BlackElo "2019"]
[Annotator "NA RC"]
[PlyCount "74"]
[EventDate "2019.??.??"]
[EventCountry "LTU"]
[SourceTitle "playchess.com"]
[Source "ChessBase"]
[SourceQuality "1"]
[TimeControl "5400+30"]

{[%evp 12,71,27,0,35,5,12,-7,57,29,34,18,50,29,11,20,23,10,68,64,64,48,100,66,92,67,69,71,64,66,68,35,55,0,0,-3,32,-12,-30,-21,-21,-38,6,-180,-175,-188,-189,-189,-181,-331,-333,32767,32767,-395,32767,32767,32767,32767,-464,-501,-568,-522]} 1. e4 {[%emt 0:00:00]} c6 {[%emt 0:00:00]} 2. d4 {[%emt 0:01:27]} d5 {[%emt 0:00:00]} 3. exd5 {[%emt 0:01:39]} cxd5 {[%emt 0:00:25]} 4. c4 {[%emt 0:00:47]} Nf6 {[%emt 0:00:09]} 5. Nc3 {[%emt 0:00:34]} e6 {[%emt 0:00:06]} 6. Nf3 {[%emt 0:00:21]} Nc6 {[%emt 0:00:40]} 7. Bd3 {[%emt 0:01:07]} Be7 {[%emt 0:00:44] B14: Caro-Kann: Panov-Botvinnik Attack with 5...e6 and 5...g6} (7... dxc4 8. Bxc4 Bb4 9. O-O O-O 10. Bg5 h6 11. Bh4 Be7 12. a3 Nh5 13. Bxe7 Nxe7 14. d5 {½-½ (14) Harutyunian,T (2528)-Indjic,A (2620) Sitges 2018}) 8. O-O {[%emt 0:00:44]} dxc4 {[%emt 0:00:23]} 9. Bxc4 {[%emt 0:00:24]} Nb4 {[%emt 0:02:20]} ({Better is} 9... O-O $11) 10. Ne5 {[%emt 0:02:58]} O-O {[%emt 0:00:23]} 11. Bg5 {[%emt 0:05:00]} Nbd5 {[%emt 0:00:34]} 12. Rc1 {[%emt 0:01:12]} h6 $146 {[%emt 0:01:37]} ({Predecessor:} 12... Nb6 13. Bb3 Nfd5 14. Bxe7 Nxe7 15. Qf3 Ng6 16. Nxg6 hxg6 {1-0 (24) Chmiel,P (2280)-Votava,P Czechia 1995}) 13. Bh4 {[%emt 0:01:51]} Nxc3 {[%emt 0:07:41]} 14. bxc3 {[%emt 0:00:49]} Nd5 {[%emt 0:01:20]} 15. Bxe7 {[%emt 0:00:59]} Nxe7 {[%emt 0:00:02]} 16. Re1 {[%emt 0:07:37]} Nf5 {[%emt 0:03:59]} (16... b6 $14) 17. Qf3 {[%emt 0:06:02]} Qg5 {[%emt 0:02:56]} 18. Rb1 {[%emt 0:04:20]} Nh4 {[%emt 0:05:58]} 19. Qg3 {[%emt 0:06:19]} Nf5 {[%emt 0:09:38]} 20. Qxg5 {[%emt 0:00:55]} hxg5 {[%emt 0:00:05]} 21. Bd3 {[%emt 0:07:56]} Nd6 {[%emt 0:10:06]} 22. Re3 {[%emt 0:06:55]} Rd8 {[%emt 0:03:57]} 23. h3 {[%emt 0:06:43]} Bd7 {[%emt 0:03:01]} 24. g4 {[%emt 0:10:11]} Rac8 {[%emt 0:06:45]} 25. c4 {[%emt 0:07:55]} b6 {[%emt 0:05:07]} 26. Rc1 {[%emt 0:00:40]} Nb5 {[%emt 0:06:08]} 27. Rd1 $2 {[%emt 0:04:08]} (27. d5 $11) 27... Nxd4 {[%emt 0:06:43]} 28. Bh7+ {[%emt 0:00:35]} Kxh7 {[%emt 0:00:14]} 29. Rxd4 {[%emt 0:00:23]} Be8 {[%emt 0:00:16]} 30. Red3 {[%emt 0:01:03]} (30. Rxd8 $142 Rxd8 31. Nf3) 30... Rxd4 {[%emt 0:01:33]} 31. Rxd4 {[%emt 0:00:01]} f6 {[%emt 0:00:32]} 32. Nd3 {[%emt 0:05:40]} e5 {[%emt 0:00:33]} 33. Rd6 {[%emt 0:00:05]} Rxc4 {[%emt 0:00:18]} 34. Rd8 {[%emt 0:00:01]} Bc6 {[%emt 0:01:08]} 35. Rc8 {[%emt 0:00:31]} a5 {[%emt 0:01:08]} 36. f3 $19 {[%emt 0:02:51]} Bd5 {[%emt 0:00:56]} 37. Rb8 {[%emt 0:00:29]} Rc3 {[%emt 0:00:46]} 0-1

[Event "LTU-ch Men 2019"]
[Site "Vilnius"]
[Date "2019.03.21"]
[Round "9.14"]
[White "Salna, Aleksandras"]
[Black "Bagdanskis, Dangis"]
[Result "0-1"]
[ECO "D43"]
[WhiteElo "1955"]
[BlackElo "1716"]
[Annotator "NA RC"]
[PlyCount "132"]
[EventDate "2019.??.??"]
[EventCountry "LTU"]
[SourceTitle "playchess.com"]
[Source "ChessBase"]
[SourceQuality "1"]
[TimeControl "5400+30"]

{[%evp 8,123,11,11,10,0,0,-6,20,2,29,26,33,33,42,53,33,33,35,0,21,0,14,-8,-11,-29,32767,32767,12,-19,21,-39,29,-21,27,-16,22,7,9,13,10,0,3,-35,-2,-23,0,0,26,19,18,32767,32767,32767,32767,25,27,20,52,56,85,0,0,2,52,0,53,0,0,0,0,0,0,0,0,32767,32767,0,0,0,32767,32767,32767,0,139,0,0,32767,102,32767,32767,32767,32767,352,32767,32767,445,504,439,550,400,583,813,1121,1662,783,1085,632,1204,942,598,27,23,-639,-817,-731,-979,-4678]} 1. Nf3 {[%emt 0:00:00]} Nf6 {[%emt 0:00:00]} 2. d4 {[%emt 0:00:51]} d5 {[%emt 0:00:00]} 3. c4 {[%emt 0:00:06]} c6 {[%emt 0:00:44]} 4. Nc3 {[%emt 0:01:07]} e6 {[%emt 0:03:50]} 5. cxd5 {[%emt 0:01:38]} exd5 {[%emt 0:00:04]} 6. Bg5 {[%emt 0:00:00]} h6 {[%emt 0:00:35]} 7. Bh4 {[%emt 0:00:00]} Bb4 {[%emt 0:01:00]} 8. Qc2 {[%emt 0:00:39] D38: Queen's Gambit Declined: Ragozin Defence (4 Nf3 Bb4)} g5 {[%emt 0:00:14]} 9. Bg3 {[%emt 0:00:12]} Ne4 {[%emt 0:00:05]} 10. Nd2 {[%emt 0:00:00]} Bf5 {[%emt 0:01:44]} 11. Ndxe4 {[%emt 0:00:29]} Bxe4 {[%emt 0:00:06]} 12. Qd2 {[%emt 0:00:26]} Nd7 {[%emt 0:12:47]} 13. e3 $146 {[%emt 0:01:05]} ({Predecessor:} 13. a3 Bxc3 14. Qxc3 Qe7 15. e3 {0-1 (29) Hnydiuk,A (2417)-Rozentalis,E (2603) Lublin 2009}) 13... Nb6 {[%emt 0:06:20]} 14. f3 {[%emt 0:02:53]} Bg6 {[%emt 0:00:36]} 15. Be2 {[%emt 0:06:43]} Qe7 {[%emt 0:03:37]} 16. Kf2 {[%emt 0:01:30]} Bd6 {[%emt 0:03:50]} 17. a4 {[%emt 0:02:37]} h5 {[%emt 0:00:08]} 18. a5 {[%emt 0:00:20]} Nd7 {[%emt 0:01:36]} 19. Rhf1 {[%emt 0:03:36]} ({White should play} 19. Bd3 $11) 19... Nf6 {[%emt 0:04:19]} 20. Bd3 {[%emt 0:03:54]} O-O {[%emt 0:06:09]} 21. Bxg6 {[%emt 0:02:02]} fxg6 {[%emt 0:00:05]} 22. Bxd6 {[%emt 0:00:51]} Qxd6 {[%emt 0:00:04]} 23. Kg1 {[%emt 0:00:10]} Rae8 {[%emt 0:00:24]} 24. Rae1 {[%emt 0:00:19]} Kg7 {[%emt 0:01:26]} 25. Kh1 {[%emt 0:17:01]} Re7 {[%emt 0:10:07]} 26. Rf2 {[%emt 0:05:10]} Rfe8 {[%emt 0:04:48]} 27. Rfe2 Rd7 {[%emt 0:15:46]} 28. Na4 {[%emt 0:05:29]} Rde7 {[%emt 0:03:17]} 29. Nc5 {[%emt 0:01:44]} b6 {[%emt 0:00:06]} 30. Nd3 {[%emt 0:00:09]} Nd7 {[%emt 0:00:06]} 31. axb6 {[%emt 0:03:18]} axb6 {[%emt 0:00:06]} 32. b4 {[%emt 0:00:16]} Kh7 {[%emt 0:02:21]} 33. Nf2 {[%emt 0:04:05]} Nf6 {[%emt 0:04:08] [#]} 34. e4 {[%emt 0:01:54]} (34. Nh3 $1 $16) 34... dxe4 {[%emt 0:00:05]} 35. fxe4 {[%emt 0:00:09]} Qf4 {[%emt 0:00:09]} 36. e5 {[%emt 0:01:34]} ({Better is} 36. Qc2 $16) 36... Nd5 {[%emt 0:00:54]} 37. Ne4 {[%emt 0:00:20]} Qxd2 {[%emt 0:00:16]} 38. Rxd2 {[%emt 0:00:23]} Kh6 {[%emt 0:00:38]} 39. b5 {[%emt 0:01:55]} cxb5 {[%emt 0:00:54]} 40. Nd6 {[%emt 0:00:55]} Rf8 {[%emt 0:00:57]} 41. Nxb5 {[%emt 0:01:17]} Ref7 {[%emt 0:00:13]} 42. h3 {[%emt 0:01:06]} Rf1+ {[%emt 0:07:06]} 43. Rxf1 {[%emt 0:00:39]} Rxf1+ {[%emt 0:00:02]} 44. Kh2 {[%emt 0:00:07]} Rb1 {[%emt 0:00:04]} 45. Nd6 {[%emt 0:00:41]} Ne3 {[%emt 0:00:03] [#]} (45... g4 $11) 46. Ra2 $2 {[%emt 0:01:20]} ({White has to play} 46. Rd3 $1 $16 {[%cal Rd3e3]} Nd5 47. Nf7+ Kg7 48. Nxg5) 46... g4 {[%emt 0:00:49]} 47. hxg4 {[%emt 0:02:31]} Nf1+ {[%emt 0:01:10]} (47... hxg4 $11 {keeps the balance.} 48. Kg3 Kg5) 48. Kg1 {[%emt 0:01:04]} hxg4 {[%emt 0:00:05]} 49. Kf2 {[%emt 0:00:30]} g3+ {[%emt 0:00:31]} 50. Kf3 {[%emt 0:01:55]} Rb3+ {[%emt 0:01:39]} 51. Kf4 {[%emt 0:00:59]} Ne3 {[%emt 0:02:25]} 52. e6 {[%emt 0:01:29]} Nd5+ {[%emt 0:00:55]} 53. Ke5 {[%emt 0:00:26]} Ne7 {[%emt 0:00:16]} 54. d5 {[%emt 0:00:59]} Re3+ {[%emt 0:02:02]} 55. Ne4 {[%emt 0:00:29]} g5 {[%emt 0:01:27]} 56. Ra1 {[%emt 0:04:07]} (56. d6 $142 Nc6+ 57. Kd5 Nb4+ 58. Kd4) 56... Kg6 {[%emt 0:01:40]} 57. Rf1 {[%emt 0:00:39]} Rd3 {[%emt 0:01:44]} 58. Nf6 {[%emt 0:02:13]} b5 {[%emt 0:00:49]} 59. Ke4 $2 {[%emt 0:01:46]} (59. Kd6 $18 Nc8+ 60. Kd7) 59... Rd2 {[%emt 0:00:08]} 60. Ke3 $2 {[%emt 0:00:41]} (60. Nd7 $11 Nxd5 61. Ne5+ Kh6 62. Rf5 Nc3+ 63. Ke3 (63. Kf3 Rf2+ 64. Kg4 Rxf5 $11)) 60... Rf2 $1 {[%emt 0:00:15]} 61. Rd1 {[%emt 0:08:52]} Kxf6 {[%emt 0:00:09]} 62. d6 $19 {[%emt 0:00:25]} Nf5+ {[%emt 0:00:36]} 63. Ke4 {[%emt 0:00:18]} Re2+ {[%emt 0:01:00]} 64. Kf3 {[%emt 0:00:04]} Re3+ {[%emt 0:00:06]} 65. Kg4 {[%emt 0:00:11]} Re4+ {[%emt 0:00:01]} 66. Kf3 {[%emt 0:00:21]} Ke5 {[%emt 0:00:46]} 0-1